Workbook

Sheet 0002
AJ2: 事業番号 | AR2: =IF(OR(AO2=" ", AO2=""), "", "-") ->  | AS2: 2 | AV2: =IF(AW2="", "", "-") -> 
A3: 平成３１年度行政事業レビューシート | AI3: （ | AJ3: 人事院 | AX3: ）
A4: 事業名 | G4: 人事・給与等業務の電子化の推進 | Y4: 担当部局庁 | AE4: 事務総局 | AQ4: 作成責任者
A5: 事業開始年度 | G5: 平成１５年度 | M5: 事業終了 （予定）年度 | S5: 終了予定なし | Y5: 担当課室 | AE5: 電子化推進室 | AQ5: 事務総局政策立案参事官 柳田健一
A6: 会計区分 | G6: 一般会計
A7: 根拠法令 （具体的な 条項も記載） | G7: - | Y7: 関係する 計画、通知等 | AE7: 人事・給与等業務・システム最適化計画 （平成16年2月27日・各府省情報化統括責任者（CIO）連絡会議決定、平成29年2月28日最終改定）
A8: 主要政策・施策 | G8: ＩＴ戦略 | Y8: 主要経費 | AE8: その他の事項経費
A9: 事業の目的 （目指す姿を簡潔に。3行程度以内） | G9: 人事・給与等業務の共通化・効率化を図るとともに、システムの運用等に係る政府全体の経費の最小限化を行う。また同時に、安全性・信頼性の確保及び個人情報の保護を実現する。
A10: 事業概要 （5行程度以内。別添可） | G10: 各府省等が必要に応じて個別にシステム化を実施している人事・給与等業務について、「人事・給与等業務・システム最適化計画」に基づき、各府省等が共同で利用する「人事・給与関係業務情報システム」を構築し、情報システムの統一化・集中化、情報の電子化と処理の自動化等による業務の効率化を目指す。 平成22年度から各府省等での人事・給与関係業務情報システム導入作業が開始され、運用センター業務、ヘルプデスク業務等を開始すると共に、「人事給与業務効率化に向けた改善計画」に定める移行スケジュールのとおり、平成29年度までに移行を予定していた府省等全てにおいて移行を完了させた。さらに、平成30年度においては参議院への導入も完了しており、利用職員数は約27.5万人（常勤）となっている。なお、令和３年度には裁判所の本番稼働を予定しており、現在、移行支援を実施している。 なお、令和元年10月のシステム機器更改に向け、平成30年度より機器更改に係る作業等を継続しており、一時的にアプリケーション改修等に伴う整備経費の増加及び新旧機器の重複等に伴う運用経費の増加が発生している。
A11: 実施方法 | G11: 委託・請負
A12: 予算額・ 執行額 （単位:百万円） | P12: 28年度 | W12: 29年度 | AD12: 30年度 | AK12: 31年度 | AR12: 32年度要求
G13: 予算の状況 | I13: 当初予算 | P13: 2684 | W13: 2474 | AD13: 2885 | AK13: 2711 | AR13: 2710
I14: 補正予算 | P14: 33 | W14: 0 | AD14: 0
I15: 前年度から繰越し | P15: 703 | W15: 0 | AD15: 0 | AK15: 0
I16: 翌年度へ繰越し | P16: 0 | W16: 0 | AD16: 0
I17: 予備費等 | P17: 147 | W17: 155 | AD17: 0
I18: 計 | P18: =SUM(P13:V17) -> 3567 | W18: =SUM(W13:AC17) -> 2629 | AD18: =SUM(AD13:AJ17) -> 2885 | AK18: =SUM(AK13:AQ17) -> 2711 | AR18: 2710
G19: 執行額 | P19: 3577 | W19: 2627 | AD19: 2876
G20: 執行率（％） | P20: =IF(P18=0, "-", SUM(P19)/P18) -> 1.002803476 | W20: =IF(W18=0, "-", SUM(W19)/W18) -> 0.9992392545 | AD20: =IF(AD18=0, "-", SUM(AD19)/AD18) -> 0.9968804159
G21: 当初予算＋補正予算に対する執行額の割合（％） | P21: =IF(P19=0, "-", SUM(P19)/SUM(P13,P14)) -> 1.31652558 | W21: =IF(W19=0, "-", SUM(W19)/SUM(W13,W14)) -> 1.061843169 | AD21: =IF(AD19=0, "-", SUM(AD19)/SUM(AD13,AD14)) -> 0.9968804159
A22: 平成31・32年度 予算内訳 （単位：百万円） | G22: 歳出予算目 | P22: 31年度当初予算 | W22: 32年度要求 | AD22: 主な増減理由
G23: 情報処理業務庁費 | P23: 2708 | W23: 2707 | AD23: 給与の支出官払化のための官庁会計システムへの連携機能向上等のためのアプリケーション改修経費の増 次期政府共通ＰＦにおける府省追加導入（裁判所）のための本番環境機器等の増に伴う借料及び保守経費の増 令和元年10月のシステム機器更改作業の終了による減 次期政府共通ＰＦ機器への移行による現行の本番環境機器等廃止等に伴う機器設置経費、借料及び保守経費の減
G24: 庁費 | P24: 2.8 | W24: 2.8
G25: 職員旅費 | P25: 0.2 | W25: 0.2
G29: 計 | P29: =AK13 -> 2711 | W29: =AR13 -> 2710
A30: 成果目標及び 成果実績 （アウトカム） | G30: 定量的な成果目標 | P30: 成果指標 | AB30: 単位 | AE30: 28年度 | AI30: 29年度 | AM30: 30年度 | AQ30: 中間目標 | AU30: 目標最終年度
AQ31: - | AS31: 年度 | AU31: 31 | AW31: 年度
G32: コスト削減の取組により、人事・給与関係業務情報システムの運用経費は、平成26年度の運用経費19.2億円を基準として、平成31年度までに、機器等の見直しにより、約5.8億円の経費削減を見込んでいる。 | P32: 人事・給与関係業務情報システムの運用経費（特別会計を含む） | Y32: 成果実績 | AB32: 億円 | AE32: =TEXT(-2.1,"#,##0.0;▲#,##0.0") -> ▲2.1 | AI32: =TEXT(-1,"#,##0.0;▲#,##0.0") -> ▲1.0 | AM32: -0.3
Y33: 目標値 | AB33: 億円 | AE33: - | AI33: - | AM33: - | AU33: -5.8
Y34: 達成度 | AB34: ％ | AE34: =-2.1/$AU$33*100 -> 36.20689655 | AI34: =-1/$AU$33*100 -> 17.24137931 | AM34: =-0.3/$AU$33*100 -> 5.172413793
A35: 根拠として用いた 統計・データ名 （出典） | G35: 世界最先端ＩＴ国家創造宣言（平成28年5月20日閣議決定、平成29年５月30日廃止） 世界最先端IT国家創造宣言・官民データ活用推進基本計画（平成29年５月30日閣議決定） 世界最先端デジタル国家創造宣言・官民データ活用推進基本計画（平成30年６月15日閣議決定、令和元年６月14日変更閣議決定）
A37: 成果目標及び 成果実績 （アウトカム） | G37: 定量的な成果目標 | P37: 成果指標 | AB37: 単位 | AE37: 28年度 | AI37: 29年度 | AM37: 30年度 | AQ37: 中間目標 | AU37: 目標最終年度
AS38: 年度 | AW38: 年度
Y39: 成果実績
Y40: 目標値
Y41: 達成度 | AB41: ％
A42: 根拠として用いた 統計・データ名 （出典）
A44: 成果目標及び 成果実績 （アウトカム） | G44: 定量的な成果目標 | P44: 成果指標 | AB44: 単位 | AE44: 28年度 | AI44: 29年度 | AM44: 30年度 | AQ44: 中間目標 | AU44: 目標最終年度
AQ45: - | AS45: 年度 | AU45: 7 | AW45: 年度
Y46: 成果実績
Y47: 目標値
Y48: 達成度 | AB48: ％
A49: 根拠として用いた 統計・データ名 （出典）
A51: 成果目標及び 成果実績 （アウトカム） | G51: 定量的な成果目標 | P51: 成果指標 | AB51: 単位 | AE51: 28年度 | AI51: 29年度 | AM51: 30年度 | AQ51: 中間目標 | AU51: 目標最終年度
AS52: 年度 | AW52: 年度
Y53: 成果実績
Y54: 目標値
Y55: 達成度 | AB55: ％
A56: 根拠として用いた 統計・データ名 （出典）
A58: 成果目標及び 成果実績 （アウトカム） | G58: 定量的な成果目標 | P58: 成果指標 | AB58: 単位 | AE58: 28年度 | AI58: 29年度 | AM58: 30年度 | AQ58: 中間目標 | AU58: 目標最終年度
AS59: 年度 | AW59: 年度
Y60: 成果実績
Y61: 目標値
Y62: 達成度 | AB62: ％
A63: 根拠として用いた 統計・データ名 （出典）
A65: 横断的な施策に係る成果目標 及び成果実績 （アウトカム） | H65: 定量的な成果目標 | P65: 成果指標 | W65: 分類 | AB65: 単位 | AE65: 28年度 | AI65: 29年度 | AM65: 30年度 | AQ65: 中間目標 | AU65: 目標最終年度
AS66: 年度 | AW66: 年度
G67: 目標・指標 | Y67: 成果実績 | AB67: 円/t-CO2
Y68: 目標値 | AB68: 円/t-CO2
Y69: 達成度 | AB69: ％
A70: 地球温暖化対策関係 | G70: 算出方法 | W70: うち、 直接効果 | Y70: 成果実績 | AB70: 円/t-CO2
Y71: 目標値 | AB71: 円/t-CO2
Y72: 達成度 | AB72: ％
A73: 横断的な施策に係る成果目標 及び成果実績 （アウトカム） | H73: 定量的な成果目標 | P73: 成果指標 | AB73: 単位 | AE73: 28年度 | AI73: 29年度 | AM73: 30年度 | AQ73: 中間目標 | AU73: 目標最終年度
AS74: 年度 | AW74: 年度
G75: 目標・指標 | Y75: 成果実績
Y76: 目標値
Y77: 達成度 | AB77: ％
A78: ●● | E78: 関係 | G78: 算出方法
A79: 成果目標及び成果実績（アウトカム）欄についてさらに記載が必要な場合はチェックの上【別紙１】に記載 | AO79: チェック
A80: 定量的な成果目標の設定が困難な場合 | B80: 定量的な目標が設定できない理由及び定性的な成果目標 | G80: 定量的な目標が設定できない理由 | AB80: 定性的な成果目標と28～30年度の達成状況・実績
B85: 事業の妥当性を検証するための代替的な達成目標及び実績 | G85: 代替目標 | P85: 代替指標 | AB85: 単位 | AE85: 28年度 | AI85: 29年度 | AM85: 30年度 | AQ85: 中間目標 | AU85: 目標最終年度
AS86: 年度 | AW86: 年度
Y87: 実績
Y88: 目標値
Y89: 達成度 | AB89: ％
B90: 事業の妥当性を検証するための代替的な達成目標及び実績 | G90: 代替目標 | P90: 代替指標 | AB90: 単位 | AE90: 28年度 | AI90: 29年度 | AM90: 30年度 | AQ90: 中間目標 | AU90: 目標最終年度
AS91: 年度 | AW91: 年度
Y92: 実績
Y93: 目標値
Y94: 達成度 | AB94: ％
B95: 事業の妥当性を検証するための代替的な達成目標及び実績 | G95: 代替目標 | P95: 代替指標 | AB95: 単位 | AE95: 28年度 | AI95: 29年度 | AM95: 30年度 | AQ95: 中間目標 | AU95: 目標最終年度
AS96: 年度 | AW96: 年度
Y97: 実績
Y98: 目標値
Y99: 達成度 | AB99: ％
A100: 活動指標及び 活動実績 （アウトプット） | G100: 活動指標 | AB100: 単位 | AE100: 28年度 | AI100: 29年度 | AM100: 30年度 | AQ100: 31年度 活動見込 | AU100: 32年度 活動見込
G101: 年度末における本番稼働府省等の数 | Y101: 活動実績 | AB101: 府省数 | AE101: 24 | AI101: 29 | AM101: 30
Y102: 当初見込み | AB102: 府省数 | AE102: 24 | AI102: 29 | AM102: 30 | AQ102: 30 | AU102: 30
A103: 活動指標及び 活動実績 （アウトプット） | G103: 活動指標 | AB103: 単位 | AE103: 28年度 | AI103: 29年度 | AM103: 30年度 | AQ103: 31年度 活動見込 | AU103: 32年度 活動見込
Y104: 活動実績
Y105: 当初見込み
A106: 活動指標及び 活動実績 （アウトプット） | G106: 活動指標 | AB106: 単位 | AE106: 28年度 | AI106: 29年度 | AM106: 30年度 | AQ106: 31年度 活動見込 | AU106: 32年度 活動見込
Y107: 活動実績
Y108: 当初見込み
A109: 活動指標及び 活動実績 （アウトプット） | G109: 活動指標 | AB109: 単位 | AE109: 28年度 | AI109: 29年度 | AM109: 30年度 | AQ109: 31年度 活動見込 | AU109: 32年度 活動見込
Y110: 活動実績
Y111: 当初見込み
A112: 活動指標及び 活動実績 （アウトプット） | G112: 活動指標 | AB112: 単位 | AE112: 28年度 | AI112: 29年度 | AM112: 30年度 | AQ112: 31年度 活動見込 | AU112: 32年度 活動見込
Y113: 活動実績
Y114: 当初見込み
A115: 単位当たり コスト | G115: 算出根拠 | AB115: 単位 | AE115: 28年度 | AI115: 29年度 | AM115: 30年度 | AQ115: 31年度活動見込
G116: 予算額のうち運用経費額（X）／ 本番稼働府省等の年度末定員数（最大利用者数）（Y） | Y116: 単位当たり コスト | AB116: 千円/人 | AE116: 移行途上につき算出困難。なお、調達に当たっては、「技術審査委員会」に諮って、適正な予算執行に努めた。 | AM116: =1838314/275239 -> 6.678973547
Y117: 計算式 | AB117: X/Y | AM117: 1,838,314/ 275,239
A118: 単位当たり コスト | G118: 算出根拠 | AB118: 単位 | AE118: 28年度 | AI118: 29年度 | AM118: 30年度 | AQ118: 31年度活動見込
G119: ／ | Y119: 単位当たり コスト
Y120: 計算式 | AB120: /
A121: 単位当たり コスト | G121: 算出根拠 | AB121: 単位 | AE121: 28年度 | AI121: 29年度 | AM121: 30年度 | AQ121: 31年度活動見込
G122: ／ | Y122: 単位当たり コスト
Y123: 計算式 | AB123: /
A124: 単位当たり コスト | G124: 算出根拠 | AB124: 単位 | AE124: 28年度 | AI124: 29年度 | AM124: 30年度 | AQ124: 31年度活動見込
G125: ／ | Y125: 単位当たり コスト
Y126: 計算式 | AB126: /
A127: 単位当たり コスト | G127: 算出根拠 | AB127: 単位 | AE127: 28年度 | AI127: 29年度 | AM127: 30年度 | AQ127: 31年度活動見込
G128: ／ | Y128: 単位当たり コスト
Y129: 計算式 | AB129: /
A130: 政策評価、新経済・財政再生計画との関係 | C130: 政策評価 | E130: 政策
E131: 施策
E132: 測定指標 | G132: 定量的指標 | AB132: 単位 | AE132: 28年度 | AI132: 29年度 | AM132: 30年度 | AQ132: 中間目標 | AU132: 目標年度
AS133: 年度 | AW133: 年度
Y134: 実績値
Y135: 目標値
G136: 定量的指標 | AB136: 単位 | AE136: 28年度 | AI136: 29年度 | AM136: 30年度 | AQ136: 中間目標 | AU136: 目標年度
AS137: 年度 | AW137: 年度
Y138: 実績値
Y139: 目標値
G140: 定量的指標 | AB140: 単位 | AE140: 28年度 | AI140: 29年度 | AM140: 30年度 | AQ140: 中間目標 | AU140: 目標年度
AS141: 年度 | AW141: 年度
Y142: 実績値
Y143: 目標値
G144: 定量的指標 | AB144: 単位 | AE144: 28年度 | AI144: 29年度 | AM144: 30年度 | AQ144: 中間目標 | AU144: 目標年度
AS145: 年度 | AW145: 年度
Y146: 実績値
Y147: 目標値
G148: 定量的指標 | AB148: 単位 | AE148: 28年度 | AI148: 29年度 | AM148: 30年度 | AQ148: 中間目標 | AU148: 目標年度
AS149: 年度 | AW149: 年度
Y150: 実績値
Y151: 目標値
G152: 定性的指標 | Q152: 目標 | AB152: 目標年度 | AE152: 施策の進捗状況（目標）
AE156: 施策の進捗状況（実績）
G159: 定性的指標 | Q159: 目標 | AB159: 目標年度 | AE159: 施策の進捗状況（目標）
AE163: 施策の進捗状況（実績）
G166: 定性的指標 | Q166: 目標 | AB166: 目標年度 | AE166: 施策の進捗状況（目標）
AE170: 施策の進捗状況（実績）
G173: 定性的指標 | Q173: 目標 | AB173: 目標年度 | AE173: 施策の進捗状況（目標）
AE177: 施策の進捗状況（実績）
G180: 定性的指標 | Q180: 目標 | AB180: 目標年度 | AE180: 施策の進捗状況（目標）
AE184: 施策の進捗状況（実績）
E187: 本事業の成果と上位施策・測定指標との関係
E190: 政策
E191: 施策
E192: 測定指標 | G192: 定量的指標 | AB192: 単位 | AE192: 28年度 | AI192: 29年度 | AM192: 30年度 | AQ192: 中間目標 | AU192: 目標年度
AS193: 年度 | AW193: 年度
Y194: 実績値
Y195: 目標値
G196: 定量的指標 | AB196: 単位 | AE196: 28年度 | AI196: 29年度 | AM196: 30年度 | AQ196: 中間目標 | AU196: 目標年度
AS197: 年度 | AW197: 年度
Y198: 実績値
Y199: 目標値
G200: 定量的指標 | AB200: 単位 | AE200: 28年度 | AI200: 29年度 | AM200: 30年度 | AQ200: 中間目標 | AU200: 目標年度
AS201: 年度 | AW201: 年度
Y202: 実績値
Y203: 目標値
G204: 定量的指標 | AB204: 単位 | AE204: 28年度 | AI204: 29年度 | AM204: 30年度 | AQ204: 中間目標 | AU204: 目標年度
AS205: 年度 | AW205: 年度
Y206: 実績値
Y207: 目標値
G208: 定量的指標 | AB208: 単位 | AE208: 28年度 | AI208: 29年度 | AM208: 30年度 | AQ208: 中間目標 | AU208: 目標年度
AS209: 年度 | AW209: 年度
Y210: 実績値
Y211: 目標値
G212: 定性的指標 | Q212: 目標 | AB212: 目標年度 | AE212: 施策の進捗状況（目標）
AE216: 施策の進捗状況（実績）
G219: 定性的指標 | Q219: 目標 | AB219: 目標年度 | AE219: 施策の進捗状況（目標）
AE223: 施策の進捗状況（実績）
G226: 定性的指標 | Q226: 目標 | AB226: 目標年度 | AE226: 施策の進捗状況（目標）
AE230: 施策の進捗状況（実績）
G233: 定性的指標 | Q233: 目標 | AB233: 目標年度 | AE233: 施策の進捗状況（目標）
AE237: 施策の進捗状況（実績）
G240: 定性的指標 | Q240: 目標 | AB240: 目標年度 | AE240: 施策の進捗状況（目標）
AE244: 施策の進捗状況（実績）
E247: 本事業の成果と上位施策・測定指標との関係
E250: 政策
E251: 施策
E252: 測定指標 | G252: 定量的指標 | AB252: 単位 | AE252: 28年度 | AI252: 29年度 | AM252: 30年度 | AQ252: 中間目標 | AU252: 目標年度
AS253: 年度 | AW253: 年度
Y254: 実績値
Y255: 目標値
G256: 定量的指標 | AB256: 単位 | AE256: 28年度 | AI256: 29年度 | AM256: 30年度 | AQ256: 中間目標 | AU256: 目標年度
AS257: 年度 | AW257: 年度
Y258: 実績値
Y259: 目標値
G260: 定量的指標 | AB260: 単位 | AE260: 28年度 | AI260: 29年度 | AM260: 30年度 | AQ260: 中間目標 | AU260: 目標年度
AS261: 年度 | AW261: 年度
Y262: 実績値
Y263: 目標値
G264: 定量的指標 | AB264: 単位 | AE264: 28年度 | AI264: 29年度 | AM264: 30年度 | AQ264: 中間目標 | AU264: 目標年度
AS265: 年度 | AW265: 年度
Y266: 実績値
Y267: 目標値
... 683 more rows
